fUST/lending_fUST_20260420
["ID","MTS","AMOUNT","RATE_DAILY","PERIOD"]
[420849260,1776633032890,-172.535267,0.00015833,2]
[420849261,1776633032900,-300.0,0.0001677,2]
[420849262,1776633032910,-184.0,0.00017675,2]
[420849263,1776633032919,-445.036,0.00017675,2]
[420849264,1776633032928,-879.7039157,0.00017923,2]
[420849265,1776633032937,-177.2,0.00018439,2]
[420849266,1776633032946,-2329.85797761,0.00018616,2]
[420849267,1776633032955,-309.52090295,0.00018677,2]
[420849268,1776633032965,-500.0,0.00018677,2]
[420849269,1776633032974,-500.0,0.00018677,2]
[420849270,1776633032984,-500.0,0.00018677,2]
[420849271,1776633032993,-500.0,0.00018677,2]
[420849272,1776633033002,-500.0,0.00018677,2]
[420849273,1776633033011,-500.0,0.00018677,2]
[420849274,1776633033020,-500.0,0.00018677,2]
[420849275,1776633033029,-500.0,0.00018677,2]
[420849276,1776633033039,-500.0,0.00018677,2]
[420849277,1776633033048,-500.0,0.00018677,2]
[420849278,1776633033058,-168.9517238,0.00018677,2]
[420849279,1776633033067,-566.14857588,0.00018677,2]
[420849280,1776633033076,-500.0,0.00018677,2]
[420849281,1776633033086,-500.0,0.00018677,2]
[420849282,1776633033095,-342.0258532,0.00018677,2]
[420849283,1776633033104,-500.0,0.00018677,2]
[420849284,1776633033113,-500.0,0.00018677,2]
[420849285,1776633033122,-500.0,0.00018677,2]
[420849286,1776633033132,-500.0,0.00018677,2]
[420849287,1776633033141,-500.0,0.00018677,2]
[420849288,1776633033151,-500.0,0.00018677,2]
[420849289,1776633033160,-500.0,0.00018677,2]
[420849290,1776633033169,-292.70063837,0.00018677,2]
[420849291,1776633033179,-500.0,0.00018677,2]
[420849292,1776633033189,-500.0,0.00018677,2]
[420849293,1776633033198,-620.43548338,0.00018677,2]
[420849294,1776633033208,-500.0,0.00018677,2]
[420849295,1776633033217,-500.0,0.00018677,2]
[420849296,1776633033226,-500.0,0.00018677,2]
[420849297,1776633033235,-500.0,0.00018677,2]
[420849298,1776633033245,-500.0,0.00018677,2]
[420849299,1776633033254,-500.0,0.00018677,2]
[420849300,1776633033263,-500.0,0.00018677,2]
[420849301,1776633033273,-500.0,0.00018677,2]
[420849302,1776633033282,-500.0,0.00018677,2]
[420849303,1776633033292,-500.0,0.00018677,2]
[420849304,1776633033302,-500.0,0.00018677,2]
[420849305,1776633033311,-500.0,0.00018677,2]
[420849306,1776633033321,-500.0,0.00018677,2]
[420849307,1776633033331,-500.0,0.00018677,2]
[420849308,1776633033340,-500.0,0.00018677,2]
[420849309,1776633033349,-500.0,0.00018677,2]
[420849310,1776633033359,-500.0,0.00018677,2]
[420849311,1776633033369,-500.0,0.00018677,2]
[420849312,1776633033378,-392.06077756,0.00018677,2]
[420849313,1776633033388,-500.0,0.00018677,2]
[420849314,1776633033398,-500.0,0.00018677,2]
[420849315,1776633033408,-500.0,0.00018677,2]
[420849316,1776633033417,-27361.585767,0.00018678,2]
[420849317,1776633033429,-376.28770396,0.00018678,2]
[420849318,1776633033440,-5700.0,0.00018678,2]
[420849319,1776633033451,-6981.10054237,0.00018678,2]
[420849328,1776633039092,-10141.07174834,0.00018678,2]
[420849329,1776633039101,-36447.44131148,0.00018678,2]
[420849330,1776633039113,-1785.00951315,0.00018678,2]
[420849331,1776633039124,-5199.95634752,0.00018678,2]
[420849332,1776633039134,-266804.83944185,0.00018678,2]
[420849333,1776633039144,-177.2,0.00018725,2]
[420849334,1776633039153,-2329.8579776,0.00018732,2]
[420849335,1776633039162,-461.453,0.00018768,2]
[420849336,1776633039173,-151.0,0.00018817,2]
[420849337,1776633039182,-455.6549115,0.00018823,2]
[420849338,1776633039191,-2329.8579776,0.00018847,2]
[420849339,1776633039200,-281.0110984,0.00018863,2]
[420849340,1776633039210,-1000.0,0.00018877,5]
[420849341,1776633039219,-325.195897,0.00018884,2]
[420849342,1776633039228,-800.0,0.00018907,2]
[420849343,1776633039238,-2329.8579776,0.00018963,2]
[420849344,1776633039247,-177.2,0.00019011,2]
[420849345,1776633039257,-2329.8579776,0.00019078,2]
[420849346,1776633039267,-800.0,0.00019137,2]
[420849347,1776633039277,-155.0472122,0.00019142,30]
[420849348,1776633039286,-600.0,0.00019152,2]
[420849349,1776633039296,-500.0,0.00019173,2]
[420849350,1776633039305,-500.0,0.00019173,2]
[420849351,1776633039315,-500.0,0.00019173,2]
[420849352,1776633039324,-500.0,0.00019173,2]
[420849353,1776633039333,-500.0,0.00019173,2]
[420849354,1776633039342,-500.0,0.00019173,2]
[420849355,1776633039351,-500.0,0.00019173,2]
[420849356,1776633039360,-500.0,0.00019173,2]
[420849357,1776633039369,-500.0,0.00019173,2]
[420849358,1776633039379,-155.0,0.00019177,2]
[420849359,1776633039388,-155.0,0.00019177,2]
[420849360,1776633039398,-188.86479536,0.00019178,2]
[420849361,1776633039407,-1467.0669,0.00019178,2]
[420849362,1776633039417,-494.32830635,0.00019178,2]
[420849363,1776633039427,-500.0,0.00019178,2]
[420849364,1776633039436,-500.0,0.00019178,2]
[420849365,1776633039445,-500.0,0.00019178,2]
[420849366,1776633039456,-500.0,0.00019178,2]
[420849367,1776633039465,-1376.89,0.00019178,2]
[420849368,1776633039475,-500.0,0.00019178,2]
[420849369,1776633039486,-500.0,0.00019178,2]
[420849370,1776633039495,-500.0,0.00019178,2]
[420849371,1776633039504,-1023.59,0.00019178,2]
[420849372,1776633039514,-500.0,0.00019178,2]
[420849373,1776633039523,-500.0,0.00019178,2]
[420849374,1776633039533,-500.0,0.00019178,2]
[420849375,1776633039542,-500.0,0.00019178,2]
[420849376,1776633039551,-500.0,0.00019178,2]
[420849377,1776633039561,-500.0,0.00019178,2]
[420849378,1776633039570,-500.0,0.00019178,2]
[420849379,1776633039581,-500.0,0.00019178,2]
[420849380,1776633039591,-507.10388538,0.00019178,2]
[420849381,1776633039600,-490.69014699,0.00019178,2]
[420849382,1776633039609,-921.86,0.00019178,2]
[420849383,1776633039618,-977.38,0.00019178,2]
[420849384,1776633039628,-500.0,0.00019178,2]
[420849385,1776633039638,-1874.03,0.00019178,2]
[420849386,1776633039647,-500.0,0.00019178,2]
[420849387,1776633039657,-500.0,0.00019178,2]
[420849388,1776633039666,-1546.07,0.00019178,2]
[420849389,1776633039675,-500.0,0.00019178,2]
[420849390,1776633039684,-526.21745477,0.00019178,2]
[420849391,1776633039694,-488.55231805,0.00019178,2]
[420849392,1776633039703,-782.33,0.00019178,2]
[420849393,1776633039713,-500.0,0.00019178,2]
[420849394,1776633039722,-500.0,0.00019178,2]
[420849395,1776633039731,-500.0,0.00019178,2]
[420849396,1776633039740,-500.0,0.00019178,2]
[420849397,1776633039749,-500.0,0.00019178,2]
[420849398,1776633039758,-500.0,0.00019178,2]
[420849399,1776633039767,-534.22386897,0.00019178,2]
[420849400,1776633039776,-3292.73,0.00019178,2]
[420849401,1776633039786,-500.0,0.00019178,2]
[420849402,1776633039795,-1779.68,0.00019178,2]
[420849403,1776633039804,-500.0,0.00019178,2]
[420849404,1776633039813,-500.0,0.00019178,2]
[420849405,1776633039822,-500.0,0.00019178,2]
[420849406,1776633039831,-500.0,0.00019178,2]
[420849407,1776633039840,-500.0,0.00019178,2]
[420849408,1776633039849,-1177.13,0.00019178,2]
[420849409,1776633039858,-500.0,0.00019178,2]
[420849410,1776633039867,-1095.07,0.00019178,2]
[420849411,1776633039876,-500.0,0.00019178,2]
[420849412,1776633039886,-500.0,0.00019178,2]
[420849413,1776633039895,-500.0,0.00019178,2]
[420849414,1776633039904,-500.0,0.00019178,2]
[420849415,1776633039913,-500.0,0.00019178,2]
[420849416,1776633039923,-602.61,0.00019178,2]
[420849417,1776633039931,-500.0,0.00019178,2]
[420849418,1776633039940,-506.43756616,0.00019178,2]
[420849419,1776633039950,-500.0,0.00019178,2]
[420849420,1776633039960,-500.0,0.00019178,2]
[420849421,1776633039969,-1623.02,0.00019178,2]
[420849422,1776633039978,-500.0,0.00019178,2]
[420849423,1776633039987,-1260.39,0.00019178,2]
[420849424,1776633039997,-2100.41,0.00019178,2]
[420849425,1776633040007,-511.03478497,0.00019178,2]
[420849426,1776633040016,-500.0,0.00019178,2]
[420849427,1776633040026,-500.0,0.00019178,2]
[420849428,1776633040036,-500.0,0.00019178,2]
[420849429,1776633040046,-500.0,0.00019178,2]
[420849430,1776633040055,-500.0,0.00019178,2]
[420849431,1776633040064,-500.0,0.00019178,2]
[420849432,1776633040073,-1763.43,0.00019178,2]
[420849433,1776633040082,-500.0,0.00019178,2]
[420849434,1776633040092,-500.0,0.00019178,2]
[420849435,1776633040103,-500.0,0.00019178,2]
[420849436,1776633040112,-500.0,0.00019178,2]
[420849437,1776633040122,-1764.66,0.00019178,2]
[420849438,1776633040132,-661.75,0.00019178,2]
[420849440,1776633040143,-500.0,0.00019178,2]
[420849442,1776633040153,-500.0,0.00019178,2]
[420849443,1776633040162,-500.0,0.00019178,2]
[420849444,1776633040172,-978.61,0.00019178,2]
[420849445,1776633040181,-509.54824632,0.00019178,2]
[420849446,1776633040190,-500.0,0.00019178,2]
[420849448,1776633040200,-500.0,0.00019178,2]
[420849450,1776633040209,-508.90847784,0.00019178,2]
[420849451,1776633040218,-500.0,0.00019178,2]
[420849452,1776633040227,-500.0,0.00019178,2]
[420849453,1776633040237,-500.0,0.00019178,2]
[420849454,1776633040246,-500.0,0.00019178,2]
[420849455,1776633040255,-510.69969563,0.00019178,2]
[420849456,1776633040264,-1362.36,0.00019178,2]
[420849457,1776633040273,-500.0,0.00019178,2]
[420849459,1776633040283,-500.0,0.00019178,2]
[420849460,1776633040293,-500.0,0.00019178,2]
[420849461,1776633040301,-220.75391275,0.00019178,2]
[420849462,1776633040310,-500.0,0.00019178,2]
[420849463,1776633040320,-500.0,0.00019178,2]
[420849464,1776633040329,-2029.81,0.00019178,2]
[420849465,1776633040338,-500.0,0.00019178,2]
[420849466,1776633040347,-510.58102917,0.00019178,2]
[420849467,1776633040357,-2080.21,0.00019178,2]
[420849468,1776633040366,-514.5924664,0.00019178,2]
[420849469,1776633040376,-206.80701358,0.00019178,2]
[420849470,1776633040385,-500.0,0.00019178,2]
[420849471,1776633040394,-500.0,0.00019178,2]
[420849472,1776633040404,-1880.13,0.00019178,2]
[420849473,1776633040413,-1711.06,0.00019178,2]
[420849474,1776633040423,-500.0,0.00019178,2]
[420849475,1776633040432,-500.0,0.00019178,2]
[420849476,1776633040442,-500.0,0.00019178,2]
[420849477,1776633040451,-500.0,0.00019178,2]
[420849478,1776633040460,-1502.12,0.00019178,2]
[420849479,1776633040470,-500.0,0.00019178,2]
[420849480,1776633040479,-500.0,0.00019178,2]
[420849481,1776633040489,-500.0,0.00019178,2]
[420849482,1776633040498,-519.0891691,0.00019178,2]
[420849483,1776633040507,-500.0,0.00019178,2]
[420849484,1776633040517,-522.05576574,0.00019178,2]
[420849485,1776633040526,-500.0,0.00019178,2]
[420849486,1776633040536,-500.0,0.00019178,2]
[420849487,1776633040546,-1943.66,0.00019178,2]
[420849488,1776633040555,-500.0,0.00019178,2]
[420849489,1776633040564,-500.0,0.00019178,2]
[420849490,1776633040574,-514.25945081,0.00019178,2]
[420849491,1776633040583,-245.53802544,0.00019178,2]
[420849492,1776633040593,-500.0,0.00019178,2]
[420849493,1776633040603,-500.0,0.00019178,2]
[420849494,1776633040616,-500.0,0.00019178,2]
[420849495,1776633040627,-1951.86,0.00019178,2]
[420849496,1776633040637,-500.0,0.00019178,2]
[420849497,1776633040648,-500.0,0.00019178,2]
[420849498,1776633040659,-535.14,0.00019178,2]
[420849499,1776633040669,-439.28176436,0.00019178,2]
[420849500,1776633040680,-500.0,0.00019178,2]
[420849501,1776633040690,-500.0,0.00019178,2]
[420849502,1776633040699,-500.0,0.00019178,2]
[420849503,1776633040711,-500.0,0.00019178,2]
[420849504,1776633040721,-500.0,0.00019178,2]
[420849505,1776633040731,-379.83625133,0.00019178,2]
[420849506,1776633040741,-500.0,0.00019178,2]
[420849507,1776633040751,-500.0,0.00019178,2]
[420849508,1776633040760,-511.97128484,0.00019178,2]
[420849509,1776633040769,-500.0,0.00019178,2]
[420849510,1776633040779,-500.0,0.00019178,2]
[420849511,1776633040788,-500.0,0.00019178,2]
[420849512,1776633040798,-500.0,0.00019178,2]
[420849513,1776633040809,-500.0,0.00019178,2]
[420849514,1776633040818,-2463.68,0.00019178,2]
[420849515,1776633040829,-1215.98,0.00019178,2]
[420849516,1776633040839,-500.0,0.00019178,2]
[420849517,1776633040850,-526.73071418,0.00019178,2]
[420849518,1776633040858,-500.0,0.00019178,2]
[420849519,1776633040867,-522.65024458,0.00019178,2]
[420849520,1776633040876,-500.0,0.00019178,2]
[420849521,1776633040885,-500.0,0.00019178,2]
[420849522,1776633040895,-506.74510902,0.00019178,2]
[420849523,1776633040904,-203.91474865,0.00019178,2]
[420849524,1776633040912,-500.0,0.00019178,2]
[420849525,1776633041124,-500.0,0.00019178,2]
[420849526,1776633041135,-500.0,0.00019178,2]
[420849527,1776633041144,-500.0,0.00019178,2]
[420849528,1776633041154,-635.2,0.00019178,2]
[420849529,1776633041163,-281.86098326,0.00019178,2]
[420849530,1776633041172,-170.782147,0.00019178,2]
[420849531,1776633041181,-500.0,0.00019178,2]
[420849532,1776633041191,-417.40105245,0.00019178,2]
[420849533,1776633041200,-521.00341202,0.00019178,2]
[420849534,1776633041210,-263.93201061,0.00019178,2]
[420849535,1776633041220,-834.01,0.00019178,2]
[420849536,1776633041229,-500.0,0.00019178,2]
[420849537,1776633041238,-500.0,0.00019178,2]
[420849538,1776633041247,-500.0,0.00019178,2]
[420849539,1776633041257,-673.19,0.00019178,2]
[420849540,1776633041266,-500.0,0.00019178,2]
[420849541,1776633041275,-500.0,0.00019178,2]
[420849542,1776633041285,-584.28,0.00019178,2]
[420849543,1776633041294,-500.0,0.00019178,2]
[420849544,1776633041303,-500.0,0.00019178,2]
[420849545,1776633041313,-744.52,0.00019178,2]
[420849546,1776633041322,-1309.58,0.00019178,2]
[420849547,1776633041332,-500.0,0.00019178,2]
[420849548,1776633041341,-500.0,0.00019178,2]
[420849549,1776633041351,-500.0,0.00019178,2]
[420849550,1776633041360,-500.0,0.00019178,2]
[420849551,1776633041370,-2308.43,0.00019178,2]
[420849552,1776633041379,-500.0,0.00019178,2]
[420849553,1776633041389,-500.0,0.00019178,2]
[420849555,1776633041398,-500.0,0.00019178,2]
[420849557,1776633041407,-500.0,0.00019178,2]
[420849558,1776633041417,-500.0,0.00019178,2]
[420849560,1776633041427,-512.68142065,0.00019178,2]
[420849562,1776633041436,-275.895158,0.00019178,2]
[420849564,1776633041446,-500.0,0.00019178,2]
[420849566,1776633041456,-500.0,0.00019178,2]
[420849568,1776633041465,-462.05168286,0.00019178,2]
[420849570,1776633041475,-1199.25,0.00019178,2]
[420849572,1776633041484,-500.0,0.00019178,2]
[420849574,1776633041494,-557.42,0.00019178,2]
[420849576,1776633041502,-500.0,0.00019178,2]
[420849578,1776633041512,-500.0,0.00019178,2]
[420849580,1776633041520,-597.26,0.00019178,2]
[420849582,1776633041530,-500.0,0.00019178,2]
[420849584,1776633041539,-1475.48,0.00019178,2]
[420849586,1776633041548,-500.0,0.00019178,2]
[420849587,1776633041557,-1338.02,0.00019178,2]
[420849589,1776633041566,-1015.15,0.00019178,2]
[420849591,1776633041576,-500.0,0.00019178,2]
[420849593,1776633041585,-500.0,0.00019178,2]
[420849595,1776633041594,-500.0,0.00019178,2]
[420849597,1776633041604,-813.02,0.00019178,2]
[420849599,1776633041614,-500.0,0.00019178,2]
[420849601,1776633041623,-500.0,0.00019178,2]
[420849603,1776633041633,-500.0,0.00019178,2]
[420849605,1776633041642,-500.0,0.00019178,2]
[420849606,1776633041652,-802.95,0.00019178,2]
[420849607,1776633041661,-500.0,0.00019178,2]
[420849608,1776633041670,-500.0,0.00019178,2]
[420849609,1776633041679,-500.0,0.00019178,2]
[420849610,1776633041688,-1127.87,0.00019178,2]
[420849611,1776633041697,-500.0,0.00019178,2]
[420849612,1776633041706,-500.0,0.00019178,2]
[420849613,1776633041715,-878.32,0.00019178,2]
[420849614,1776633041724,-333.47111798,0.00019178,2]
[420849625,1776633043666,-776.26059902,0.00018986,2]
[420849626,1776633043800,-1148.52293763,0.00018986,2]
[420849631,1776633046696,-649.11,0.00018986,2]
[420849717,1776634232037,-2422.07175643,0.00012389,2]
[420849718,1776634232047,-505.0,0.00012389,2]
[420849719,1776634232057,-1200.0,0.00012513,2]
[420849720,1776634232067,-3955.31380991,0.00012514,2]
[420849721,1776634232077,-150.0,0.00012704,2]
[420849722,1776634232086,-300.0,0.00013024,2]
[420849723,1776634232096,-1000.0,0.00013699,2]
[420849724,1776634232106,-1680.0,0.00013764,2]
[420849725,1776634232116,-300.0,0.00013971,2]
[420849726,1776634232126,-300.0,0.00013971,2]
[420849727,1776634232136,-300.0,0.00013971,2]
[420849728,1776634232146,-300.0,0.00013971,2]
[420849729,1776634232156,-300.0,0.00013971,2]
[420849730,1776634232166,-300.0,0.00013971,2]
[420849731,1776634232176,-300.0,0.00013971,2]
[420849732,1776634232188,-300.0,0.00013971,2]
[420849733,1776634232198,-300.0,0.00013971,2]
[420849734,1776634232208,-300.0,0.00013971,2]
[420849735,1776634232218,-300.0,0.00013971,2]
[420849736,1776634232229,-300.0,0.00013971,2]
[420849737,1776634232238,-300.0,0.00013971,2]
[420849738,1776634232248,-300.0,0.00013971,2]
[420849739,1776634232257,-300.0,0.00013971,2]
[420849740,1776634232267,-420.0,0.00014283,2]
[420849741,1776634232277,-177.0,0.00014704,2]
[420849742,1776634232286,-300.0,0.00015126,2]
[420849743,1776634232296,-587.0,0.00015663,2]
[420849744,1776634232306,-204.0,0.00016704,2]
[420849745,1776634232315,-162.76,0.0001708,7]
[420849746,1776634232325,-160.0,0.0001738,2]
[420849747,1776634232335,-180.167548,0.00017446,2]
[420849748,1776634232353,-792.0501017,0.00017555,2]
[420849749,1776634232366,-719.76,0.00017555,2]
[420849971,1776634238470,-1211.8303232,0.00017555,2]
[420849972,1776634238481,-162.76,0.00017779,7]
[420849973,1776634238490,-160.0,0.00018064,2]
[420849974,1776634238500,-537.6845,0.00018218,2]
[420849975,1776634238510,-2150.738,0.00018218,2]
[420849976,1776634238520,-330.53434472,0.00018223,2]
[420849977,1776634238532,-1877.46565528,0.00018223,2]
[420849978,1776634238542,-1406.0,0.00018223,2]
[420849979,1776634238552,-645.0,0.00018223,2]
[420849980,1776634238563,-441.0,0.00018223,2]
[420849981,1776634238572,-184.0,0.00018223,2]
[420849982,1776634238582,-1428.50066023,0.00018228,2]
[420849983,1776634238592,-557.5788265,0.00018273,2]
[420849984,1776634238602,-7523.59514272,0.00018278,2]
[420849985,1776634238613,-578.20924308,0.00018328,2]
[420849986,1776634238624,-500.0,0.00018377,2]
[420849987,1776634238634,-500.0,0.00018377,2]
[420849988,1776634238644,-500.0,0.00018377,2]
[420849989,1776634238654,-500.0,0.00018377,2]
[420849990,1776634238664,-500.0,0.00018377,2]
[420849991,1776634238673,-216.66463207,0.00018377,2]
[420849992,1776634238683,-500.0,0.00018377,2]
[420849993,1776634238693,-500.0,0.00018377,2]
[420849994,1776634238703,-500.0,0.00018377,2]
[420849995,1776634238713,-500.0,0.00018377,2]
[420849996,1776634238722,-500.0,0.00018377,2]
[420849997,1776634238732,-500.0,0.00018377,2]
[420849998,1776634238742,-500.0,0.00018377,2]
[420849999,1776634238752,-233.6859,0.00018377,2]
[420850000,1776634238762,-649.71105432,0.00018377,2]
[420850001,1776634238772,-500.0,0.00018377,2]
[420850002,1776634238782,-500.0,0.00018377,2]
[420850003,1776634238792,-500.0,0.00018377,2]
[420850004,1776634238802,-500.0,0.00018377,2]
[420850005,1776634238812,-500.0,0.00018377,2]
[420850006,1776634238823,-458.0,0.00018377,2]
[420850007,1776634238832,-500.0,0.00018377,2]
[420850008,1776634238842,-425.195,0.00018377,2]
[420850009,1776634238852,-500.0,0.00018377,2]
[420850010,1776634238861,-500.0,0.00018377,2]
[420850011,1776634238871,-170.83094473,0.00018377,2]
[420850012,1776634238881,-500.0,0.00018377,2]
[420850013,1776634238891,-500.0,0.00018377,2]
[420850014,1776634238901,-500.0,0.00018377,2]
[420850015,1776634238911,-500.0,0.00018377,2]
[420850016,1776634238921,-600.0,0.00018377,2]
[420850017,1776634238931,-240457.7088693,0.00018378,2]
[420850018,1776634238942,-478.85715799,0.00018378,2]
[420850019,1776634238967,-96374.13439014,0.00018378,2]
[420850020,1776634238979,-946.79437593,0.00018378,2]
[420850021,1776634240339,-2284.60625744,0.00018378,2]
[420850038,1776634242977,-78198.86173871,0.00018378,2]
[420850039,1776634242996,-2244.0,0.00018378,2]
[420850040,1776634243007,-431.83675393,0.00018378,2]
[420850049,1776634246342,-14958.6,0.00018378,2]
[420850050,1776634246353,-20107.50884363,0.00018378,2]
[420850051,1776634246362,-9563.06717447,0.00018378,2]
[420850052,1776634246401,-300.0,0.00018378,2]
[420850054,1776634318988,-441.0,0.00013699,2]
[420850055,1776634319001,-559.0,0.00013699,2]
[420850056,1776634319010,-441.0,0.00013699,2]
[420850153,1776635372380,-1093.73378429,0.00011341,2]
[420850154,1776635372404,-479.58809928,0.00011456,2]
[420850182,1776635431946,-576.63314209,0.00011341,2]
[420850184,1776635431958,-4385.044197,0.00011341,2]
[420850186,1776635431969,-38.32266091,0.00011341,2]
[420850188,1776635431979,-150.0,0.00011486,2]
[420850190,1776635431988,-209.75980676,0.0001254,2]
[420850192,1776635431999,-225.0543393,0.00013486,2]
[420850194,1776635432008,-1000.0,0.00013699,2]
[420850196,1776635432017,-242.4410793,0.00017173,2]
[420850198,1776635432026,-325.2893202,0.00017179,2]
[420850200,1776635432035,-160.0,0.00017611,2]
[420850202,1776635432044,-160.0,0.00017623,2]
[420850204,1776635432054,-1199.0,0.00018217,2]
[420850205,1776635432062,-537.6845,0.00018218,2]
[420850207,1776635432071,-1214.99742766,0.00018218,2]
[420850396,1776635443330,-935.74057234,0.00018218,2]
[420850397,1776635443339,-441.0,0.00018226,2]
[420850398,1776635443348,-184.0,0.00018226,2]
[420850399,1776635443358,-150.0,0.00018226,2]
[420850400,1776635443367,-150.494,0.00018226,2]
[420850401,1776635443376,-110.76542766,0.00018273,2]
[420850406,1776635446179,-446.81339884,0.00018273,2]
[420850407,1776635446188,-800.0,0.000183,2]
[420850408,1776635446197,-578.20924308,0.00018328,2]
[420850409,1776635446207,-445.202766,0.00018351,2]
[420850410,1776635446216,-5826.7601866,0.00018362,2]
[420850411,1776635446226,-599.60298507,0.00018383,2]
[420850412,1776635446235,-621.78829552,0.00018438,2]
[420850413,1776635446244,-162.76,0.00018479,7]
[420850414,1776635446253,-644.79446246,0.00018493,2]
[420850415,1776635446262,-668.65185757,0.00018548,2]
[420850416,1776635446271,-600.0,0.00018586,2]
[420850417,1776635446280,-693.3919763,0.00018603,2]
[420850418,1776635446289,-1249.93807771,0.00018645,2]
[420850419,1776635446298,-719.04747942,0.00018658,2]
[420850420,1776635446307,-494.802,0.00018697,2]
[420850421,1776635446317,-745.65223616,0.00018713,2]
[420850422,1776635446327,-300.0,0.00018745,2]
[420850423,1776635446336,-300.0,0.00018745,2]
[420850424,1776635446345,-300.0,0.00018745,2]
[420850425,1776635446355,-300.0,0.00018745,2]
[420850426,1776635446364,-300.0,0.00018745,2]
[420850427,1776635446373,-300.0,0.00018745,2]
[420850428,1776635446383,-300.0,0.00018745,2]
[420850429,1776635446392,-300.0,0.00018745,2]
[420850430,1776635446402,-300.0,0.00018745,2]
[420850431,1776635446411,-300.0,0.00018745,2]
[420850432,1776635446420,-300.0,0.00018745,2]
[420850433,1776635446430,-300.0,0.00018745,2]
[420850434,1776635446439,-300.0,0.00018745,2]
[420850435,1776635446448,-300.0,0.00018745,2]
[420850436,1776635446458,-300.0,0.00018745,2]
[420850437,1776635446467,-773.2413689,0.00018768,2]
[420850438,1776635446477,-347.29213799,0.00018823,2]
[420850439,1776635446486,-800.0,0.000189,3]
[420850440,1776635446495,-800.0,0.000189,4]
[420850441,1776635446504,-3602.36236855,0.00018978,2]
[420850442,1776635446561,-802.0264,0.00018978,2]
[420850845,1776636574138,-1125.55247888,0.00013157,2]
[420850902,1776636632232,-3963.07714896,0.00013024,2]
[420850903,1776636632242,-1200.0,0.00013156,2]
[420850904,1776636632252,-607.0,0.00013157,2]
[420850905,1776636632261,-300.0,0.00013289,2]
[420850906,1776636632271,-300.0,0.00013289,2]
[420850907,1776636632280,-96.2357674,0.00013291,2]
[420850908,1776636632292,-199.53366054,0.00013291,2]
[420850909,1776636632301,-1000.0,0.00013699,2]
[420850910,1776636632310,-300.0,0.00013832,2]
[420850911,1776636632320,-300.0,0.00013832,2]
[420850912,1776636632329,-300.0,0.00013832,2]
[420850913,1776636632339,-300.0,0.00013832,2]
[420850914,1776636632348,-101.93850104,0.00013832,2]
[420850915,1776636632359,-198.06149896,0.00013832,2]
[420850916,1776636632369,-300.0,0.00013832,2]
[420850917,1776636632379,-300.0,0.00013832,2]
[420850918,1776636632388,-300.0,0.00013832,2]
[420850919,1776636632398,-300.0,0.00013832,2]
[420850920,1776636632407,-300.0,0.00013832,2]
[420850921,1776636632416,-300.0,0.00013832,2]
[420850922,1776636632426,-300.0,0.00013832,2]
[420850923,1776636632438,-300.0,0.00013832,2]
[420850924,1776636632447,-300.0,0.00013832,2]
[420850925,1776636632457,-300.0,0.00013832,2]
[420850926,1776636632466,-600.0,0.00014108,2]
[420850927,1776636632475,-720.0,0.00015518,2]